fUST/lending_fUST_20250928
["ID","MTS","AMOUNT","RATE_DAILY","PERIOD"]
[388064558,1758997854008,-151.0,0.0002944,7]
[388064559,1758997854018,-151.0,0.0002944,7]
[388064560,1758997854028,-151.0,0.0002944,7]
[388064561,1758997854038,-151.0,0.0002944,7]
[388064562,1758997854048,-151.0,0.0002944,7]
[388064563,1758997854058,-152.978178,0.0002944,7]
[388064564,1758997854067,-152.978178,0.0002944,7]
[388064565,1758997854077,-152.978178,0.0002944,7]
[388064566,1758997854087,-152.978176,0.0002944,7]
[388064567,1758997854097,-217.020903,0.0002944,7]
[388064568,1758997854107,-217.020903,0.0002944,7]
[388064569,1758997854116,-217.020903,0.0002944,7]
[388064570,1758997854126,-217.020907,0.0002944,7]
[388064571,1758997854135,-151.0,0.0002944,7]
[388064572,1758997854145,-151.0,0.0002944,7]
[388064573,1758997854154,-151.0,0.0002944,7]
[388064574,1758997854164,-151.0,0.0002944,7]
[388064575,1758997854174,-151.0,0.0002944,7]
[388064576,1758997854184,-151.0,0.0002944,7]
[388064577,1758997854193,-151.0,0.0002944,7]
[388064578,1758997854203,-151.0,0.0002944,7]
[388064579,1758997854212,-151.0,0.0002944,7]
[388064580,1758997854222,-151.0,0.0002944,7]
[388064581,1758997854231,-151.0,0.0002944,7]
[388064582,1758997854241,-151.0,0.0002944,7]
[388064583,1758997854251,-151.0,0.0002944,7]
[388064584,1758997854261,-151.0,0.0002944,7]
[388064585,1758997854270,-151.0,0.0002944,7]
[388064586,1758997854280,-151.0,0.0002944,7]
[388064587,1758997854289,-151.0,0.0002944,7]
[388064588,1758997854299,-186.974653,0.0002944,7]
[388064589,1758997854309,-763.173585,0.0002944,7]
[388064590,1758997854319,-186.974653,0.0002944,7]
[388064591,1758997854329,-186.974653,0.0002944,7]
[388064592,1758997854339,-763.173585,0.0002944,7]
[388064593,1758997854348,-186.974658,0.0002944,7]
[388064594,1758997854358,-763.173585,0.0002944,7]
[388064595,1758997854368,-763.173585,0.0002944,7]
[388064596,1758997854379,-151.0,0.0002944,7]
[388064597,1758997854389,-151.0,0.0002944,7]
[388064598,1758997854399,-151.0,0.0002944,7]
[388064599,1758997854410,-151.0,0.0002944,7]
[388064600,1758997854421,-151.0,0.0002944,7]
[388064601,1758997854431,-205.000444,0.0002944,7]
[388064602,1758997854446,-1112.133079,0.0002944,7]
[388064603,1758997854456,-151.0,0.0002944,7]
[388064604,1758997854466,-151.0,0.0002944,7]
[388064605,1758997854475,-1112.133079,0.0002944,7]
[388064606,1758997854485,-327.606136,0.0002944,7]
[388064607,1758997854496,-151.0,0.0002944,7]
[388064608,1758997854506,-327.606136,0.0002944,7]
[388064609,1758997854516,-1112.133079,0.0002944,7]
[388064610,1758997854526,-327.606136,0.0002944,7]
[388064611,1758997854536,-1112.133074,0.0002944,7]
[388064612,1758997854546,-327.606137,0.0002944,7]
[388064613,1758997854555,-159.229884,0.0002944,7]
[388064614,1758997854565,-151.0,0.0002944,7]
[388064615,1758997854575,-151.0,0.0002944,7]
[388064616,1758997854585,-151.0,0.0002944,7]
[388064617,1758997854594,-151.0,0.0002944,7]
[388064618,1758997854604,-590.992229,0.0002944,7]
[388064619,1758997854614,-590.992229,0.0002944,7]
[388064620,1758997854624,-590.992229,0.0002944,7]
[388064621,1758997854634,-590.992222,0.0002944,7]
[388064622,1758997854644,-151.0,0.0002944,7]
[388064623,1758997854654,-151.0,0.0002944,7]
[388064624,1758997854664,-151.0,0.0002944,7]
[388064625,1758997854674,-151.0,0.0002944,7]
[388064626,1758997854684,-262.845549,0.0002944,7]
[388064627,1758997854694,-262.845549,0.0002944,7]
[388064628,1758997854703,-262.845549,0.0002944,7]
[388064629,1758997854713,-262.845547,0.0002944,7]
[388064630,1758997854724,-151.0,0.0002944,7]
[388064631,1758997854734,-151.0,0.0002944,7]
[388064632,1758997854744,-151.0,0.0002944,7]
[388064633,1758997854754,-151.0,0.0002944,7]
[388064634,1758997854764,-151.0,0.0002944,7]
[388064635,1758997854774,-151.0,0.0002944,7]
[388064636,1758997854784,-151.0,0.0002944,7]
[388064637,1758997854794,-151.0,0.0002944,7]
[388064638,1758997854804,-446.417613,0.0002944,7]
[388064639,1758997854814,-446.417613,0.0002944,7]
[388064640,1758997854825,-446.417613,0.0002944,7]
[388064641,1758997854835,-446.417609,0.0002944,7]
[388064642,1758997854845,-913.749795,0.0002944,7]
[388064643,1758997854855,-913.749795,0.0002944,7]
[388064644,1758997854864,-913.749795,0.0002944,7]
[388064645,1758997854874,-913.749803,0.0002944,7]
[388064646,1758997854883,-508.982123,0.0002944,7]
[388064647,1758997854892,-508.982123,0.0002944,7]
[388064648,1758997854902,-508.982123,0.0002944,7]
[388064649,1758997854912,-508.982125,0.0002944,7]
[388064650,1758997854922,-151.0,0.0002944,7]
[388064651,1758997854932,-151.0,0.0002944,7]
[388064652,1758997854941,-258.535063,0.0002944,7]
[388064653,1758997854951,-151.0,0.0002944,7]
[388064654,1758997854960,-151.0,0.0002944,7]
[388064655,1758997854970,-241.6,0.0002944,7]
[388064656,1758997854979,-151.0,0.0002944,7]
[388064657,1758997854988,-151.0,0.0002944,7]
[388064658,1758997854998,-387.744915,0.0002944,7]
[388064659,1758997855008,-4071.393585,0.0002944,7]
[388064660,1758997855018,-151.0,0.0002944,7]
[388064661,1758997855027,-387.744915,0.0002944,7]
[388064662,1758997855039,-4071.393585,0.0002944,7]
[388064663,1758997855048,-387.744915,0.0002944,7]
[388064664,1758997855058,-4071.393585,0.0002944,7]
[388064665,1758997855067,-387.74491,0.0002944,7]
[388064666,1758997855077,-4071.393593,0.0002944,7]
[388064667,1758997855087,-151.765785,0.0002944,7]
[388064668,1758997855096,-151.765785,0.0002944,7]
[388064669,1758997855105,-151.765785,0.0002944,7]
[388064670,1758997855115,-151.765781,0.0002944,7]
[388064671,1758997855126,-151.0,0.0002944,7]
[388064672,1758997855135,-151.0,0.0002944,7]
[388064673,1758997855145,-151.0,0.0002944,7]
[388064674,1758997855155,-151.0,0.0002944,7]
[388064675,1758997855164,-151.0,0.0002944,7]
[388064676,1758997855174,-151.0,0.0002944,7]
[388064677,1758997855183,-151.0,0.0002944,7]
[388064678,1758997855193,-2916.442232,0.0002944,7]
[388064679,1758997855203,-2916.442232,0.0002944,7]
[388064680,1758997855213,-2916.442232,0.0002944,7]
[388064681,1758997855222,-2916.442228,0.0002944,7]
[388064682,1758997855232,-172.900834,0.0002944,7]
[388064683,1758997855242,-172.900834,0.0002944,7]
[388064684,1758997855251,-172.900834,0.0002944,7]
[388064685,1758997855261,-172.900824,0.0002944,7]
[388064686,1758997855270,-180.192848,0.0002944,7]
[388064687,1758997855279,-151.0,0.0002944,7]
[388064688,1758997855289,-180.192848,0.0002944,7]
[388064689,1758997855299,-180.192848,0.0002944,7]
[388064690,1758997855309,-180.192844,0.0002944,7]
[388064691,1758997855319,-151.0,0.0002944,7]
[388064692,1758997855329,-267.960717,0.0002944,7]
[388064693,1758997855338,-259.646732,0.0002944,7]
[388064694,1758997855347,-267.960717,0.0002944,7]
[388064695,1758997855356,-267.960717,0.0002944,7]
[388064696,1758997855365,-267.960723,0.0002944,7]
[388064697,1758997855375,-151.0,0.0002944,7]
[388064698,1758997855385,-151.0,0.0002944,7]
[388064699,1758997855394,-151.0,0.0002944,7]
[388064700,1758997855408,-1940.45639337,0.00029444,2]
[388064701,1758997855418,-2500.0,0.00029464,5]
[388064702,1758997855427,-1000.0,0.00029464,5]
[388064703,1758997855437,-1019.53822146,0.00029464,5]
[388064704,1758997855447,-2504.83976007,0.00029464,5]
[388064705,1758997855457,-2500.0,0.00029464,5]
[388064706,1758997855466,-191.28875628,0.0002947,20]
[388064707,1758997855477,-150.0,0.00029473,5]
[388064708,1758997855486,-500.0,0.000295,5]
[388064709,1758997855495,-4146.49,0.000295,2]
[388064710,1758997855504,-150.40372041,0.000295,120]
[388064711,1758997855514,-198.0,0.00029507,34]
[388064712,1758997855523,-1403.14159869,0.00029573,2]
[388064713,1758997855532,-199.0,0.00029589,16]
[388064714,1758997855541,-920.34124168,0.00029592,5]
[388064715,1758997855551,-4500.0,0.00029656,5]
[388064716,1758997855560,-2500.0,0.00029687,5]
[388064717,1758997855569,-860.0,0.00029794,2]
[388064718,1758997855578,-151.0,0.00029851,2]
[388064719,1758997855588,-4500.0,0.00029856,5]
[388064720,1758997855597,-1201.87526513,0.000299,5]
[388064721,1758997855606,-189.00975,0.0003,2]
[388064722,1758997855616,-2077.76374051,0.0003,2]
[388064723,1758997855625,-73352.47672579,0.0003,30]
[388064724,1758997855634,-500.70688371,0.0003,5]
[388064725,1758997855643,-165.46,0.0003,5]
[388064726,1758997855653,-524.09742347,0.0003,2]
[388064727,1758997855662,-158.83527674,0.0003,60]
[388064728,1758997855672,-160.0,0.0003,10]
[388064729,1758997855681,-160.0,0.0003,10]
[388064730,1758997855690,-1115.46,0.0003,2]
[388064731,1758997855702,-180.72385536,0.00030012,5]
[388064732,1758997855714,-3000.0,0.00030012,5]
[388064733,1758997855724,-250.0,0.00030021,5]
[388064734,1758997855734,-1000.0,0.00030048,5]
[388064735,1758997855743,-500.0,0.00030136,15]
[388064736,1758997855753,-500.0,0.00030136,15]
[388064737,1758997855763,-440.0,0.00030136,15]
[388064738,1758997855773,-800.0,0.0003014,5]
[388064739,1758997855782,-5000.0,0.00030204,5]
[388064740,1758997855792,-199.0,0.00030273,17]
[388064741,1758997855802,-960.0,0.00030342,2]
[388064742,1758997855811,-352.15969881,0.00030387,2]
[388064743,1758997855821,-1015.63327016,0.00030404,5]
[388064744,1758997855831,-310.54175813,0.00030412,2]
[388064745,1758997855840,-153.76,0.00030466,15]
[388064746,1758997855849,-152.61,0.00030479,15]
[388064747,1758997855859,-3500.0,0.0003056,5]
[388064748,1758997855869,-153.77,0.00030566,15]
[388064749,1758997855879,-350.0,0.00030568,5]
[388064750,1758997855888,-152.61,0.00030579,15]
[388064751,1758997855898,-1504.3947377,0.00030596,5]
[388064752,1758997855907,-152.61,0.00030679,15]
[388064753,1758997855916,-224.072847,0.00030735,60]
[388064754,1758997855926,-5500.0,0.00030752,5]
[388064755,1758997855935,-3028.93115152,0.00030777,2]
[388064756,1758997856154,-152.61,0.00030779,15]
[388064757,1758997856164,-1403.14159869,0.00030829,2]
[388064758,1758997856173,-152.61,0.00030879,15]
[388064759,1758997856182,-1060.0,0.0003089,2]
[388064760,1758997856191,-3292.0,0.00030896,2]
[388064761,1758997856200,-199.0,0.00030958,18]
[388064762,1758997856210,-152.61,0.00030979,15]
[388064763,1758997856220,-522.0,0.0003098,2]
[388064764,1758997856229,-200.0,0.00030985,15]
[388064765,1758997856238,-522.0,0.00031018,2]
[388064766,1758997856248,-152.61,0.00031079,15]
[388064767,1758997856257,-4000.0,0.00031108,5]
[388064768,1758997856267,-450.0,0.00031116,5]
[388064769,1758997856276,-163.0,0.00031151,44]
[388064770,1758997856286,-520.0,0.00031179,2]
[388064771,1758997856295,-152.61,0.00031179,15]
[388064772,1758997856304,-470970.5367052,0.00031187,2]
[388064773,1758997856313,-4146.49,0.000312,2]
[388064774,1758997856323,-152.61,0.00031279,15]
[388064775,1758997856333,-6000.0,0.000313,5]
[388064776,1758997856343,-613.0,0.00031373,3]
[388064777,1758997856353,-823.0,0.00031373,2]
[388064778,1758997856364,-152.61,0.00031379,15]
[388064779,1758997856373,-1160.0,0.00031438,2]
[388064780,1758997856383,-1000000.0,0.0003144,2]
[388064781,1758997856392,-151.0,0.0003144,7]
[388064782,1758997856405,-151.0,0.0003144,7]
[388064783,1758997856415,-154.417876,0.0003144,7]
[388064784,1758997856424,-151.0,0.0003144,7]
[388064785,1758997856434,-151.0,0.0003144,7]
[388064786,1758997856443,-151.0,0.0003144,7]
[388064787,1758997856453,-151.0,0.0003144,7]
[388064788,1758997856462,-151.0,0.0003144,7]
[388064789,1758997856471,-151.0,0.0003144,7]
[388064790,1758997856481,-151.0,0.0003144,7]
[388064791,1758997856491,-169.440849,0.0003144,7]
[388064792,1758997856501,-151.0,0.0003144,7]
[388064793,1758997856511,-186.948398,0.0003144,7]
[388064794,1758997856520,-186.948398,0.0003144,7]
[388064795,1758997856530,-186.948398,0.0003144,7]
[388064796,1758997856539,-186.948398,0.0003144,7]
[388064797,1758997856548,-151.0,0.0003144,7]
[388064798,1758997856557,-151.0,0.0003144,7]
[388064799,1758997856567,-151.0,0.0003144,7]
[388064800,1758997856576,-151.0,0.0003144,7]
[388064801,1758997856588,-520.0,0.00031453,2]
[388064802,1758997856598,-150.0,0.00031473,5]
[388064803,1758997856608,-500.0,0.00031473,5]
[388064804,1758997856617,-152.61,0.00031479,15]
[388064805,1758997856626,-152.61,0.00031579,15]
[388064806,1758997856636,-199.0,0.00031643,19]
[388064807,1758997856645,-4500.0,0.00031656,5]
[388064808,1758997856655,-550.0,0.00031664,5]
[388064809,1758997856665,-152.61,0.00031679,15]
[388064810,1758997856674,-152.61279583,0.00031779,15]
[388064811,1758997856684,-3292.0,0.00031803,3]
[388064812,1758997856694,-976.89380597,0.00031848,5]
[388064813,1758997856705,-5000.0,0.00031966,3]
[388064814,1758997856716,-1260.0,0.00031986,2]
[388064815,1758997856725,-172.22016766,0.00032,120]
[388064816,1758997856734,-214.60596597,0.00032,120]
[388064817,1758997856743,-183.47971838,0.00032,120]
[388064818,1758997856752,-284.64812441,0.00032,120]
[388064819,1758997856761,-706.28334876,0.00032,120]
[388064820,1758997856770,-161.73391873,0.00032,120]
[388064821,1758997856779,-217.99592756,0.00032,120]
[388064822,1758997856788,-1200.99161519,0.00032,2]
[388064823,1758997856797,-170.13491034,0.00032,30]
[388064824,1758997856807,-190.849999,0.00032,30]
[388064825,1758997856816,-307.16590659,0.00032021,5]
[388064826,1758997856824,-294.58643663,0.00032021,5]
[388064827,1758997856834,-160.39805331,0.00032069,30]
[388064828,1758997856843,-1403.14159869,0.00032084,2]
[388064829,1758997856852,-520.0,0.00032193,7]
[388064830,1758997856861,-5000.0,0.00032204,5]
[388064831,1758997856871,-406.38829973,0.00032212,5]
[388064832,1758997856880,-466.84217706,0.00032237,2]
[388064833,1758997856889,-840.3159187,0.00032237,2]
[388064834,1758997856899,-1493.89496658,0.00032237,2]
[388064835,1758997856908,-2334.21088528,0.00032237,2]
[388064836,1758997856917,-5975.57986632,0.00032237,2]
[388064837,1758997856927,-7555.28042505,0.00032237,2]
[388064838,1758997856937,-460.38923539,0.00032237,2]
[388064839,1758997856946,-828.70062371,0.00032237,2]
[388064840,1758997856955,-1473.24555326,0.00032237,2]
[388064841,1758997856964,-2301.94617697,0.00032237,2]
[388064842,1758997856973,-3314.80249483,0.00032237,2]
[388064843,1758997856983,-4507.30269235,0.00032237,2]
[388064844,1758997856992,-183.47971838,0.000323,120]
[388064845,1758997857001,-284.64812441,0.000323,120]
[388064846,1758997857011,-706.28334876,0.000323,120]
[388064847,1758997857020,-161.73391873,0.000323,120]
[388064848,1758997857029,-199.0,0.00032328,20]
[388064849,1758997857039,-250.0,0.00032523,2]
[388064850,1758997857048,-1360.0,0.00032534,2]
[388064851,1758997857058,-520.0,0.00032554,2]
[388064852,1758997857067,-520.0,0.00032575,7]
[388064853,1758997857076,-520.0,0.00032594,2]
[388064854,1758997857086,-284.64812441,0.000326,120]
[388064855,1758997857095,-706.28334876,0.000326,120]
[388064856,1758997857105,-520.0,0.00032726,2]
[388064857,1758997857115,-370000.0,0.0003274,2]
[388064858,1758997857123,-5500.0,0.00032752,5]
[388064859,1758997857133,-520.0,0.0003279,2]
[388064860,1758997857142,-171.0,0.00032795,55]
[388064861,1758997857152,-1000.0,0.00032876,15]
[388064862,1758997857162,-170.17474482,0.00032876,2]
[388064863,1758997857171,-350.06124874,0.00032876,2]
[388064864,1758997857180,-500.0,0.00032876,2]
[388064865,1758997857189,-500.0,0.00032876,2]
[388064866,1758997857198,-637.191521,0.00032876,2]
[388064867,1758997857207,-500.0,0.00032876,2]
[388064868,1758997857216,-500.0,0.00032876,2]
[388064869,1758997857226,-500.0,0.00032876,2]
[388064870,1758997857236,-469.8240623,0.00032876,2]
[388064871,1758997857245,-539.22317972,0.00032876,2]
[388064872,1758997857255,-500.0,0.00032876,2]
[388064873,1758997857265,-500.0,0.00032876,2]
[388064874,1758997857274,-500.0,0.00032876,2]
[388064875,1758997857284,-500.0,0.00032876,2]
[388064876,1758997857294,-361.50951389,0.00032876,2]
[388064877,1758997857304,-648.440392,0.00032877,2]
[388064878,1758997857314,-1200.0,0.00032879,5]
[388064879,1758997857323,-500.0,0.00032899,2]
[388064880,1758997857332,-1000.0,0.00032899,2]
[388064881,1758997857342,-1000.0,0.00032899,2]
[388064882,1758997857351,-522.0,0.00032951,7]
[388064883,1758997857361,-284.64812441,0.00033,120]
[388064884,1758997857371,-706.28334876,0.00033,120]
[388064885,1758997857380,-1164.58396851,0.00033,2]
[388064886,1758997857390,-979.0,0.00033013,2]
[388064887,1758997857401,-2161.0,0.00033013,2]
[388064888,1758997857412,-635.0,0.00033013,2]
[388064889,1758997857422,-410.0,0.00033013,2]
[388064890,1758997857431,-199.0,0.00033013,21]
[388064891,1758997857440,-417.15472785,0.00033018,2]
[388064892,1758997857451,-160.0,0.00033025,2]
[388064893,1758997857460,-160.0,0.00033027,2]
[388064894,1758997857470,-501.24583437,0.00033072,7]
[388064895,1758997857482,-1460.0,0.00033082,2]
[388064896,1758997857492,-1518.57899064,0.000331,60]
[388064897,1758997857502,-4146.49,0.000331,14]
[388064898,1758997857511,-520.0,0.00033207,2]
[388064899,1758997857520,-153.0,0.00033225,2]
[388064900,1758997857530,-153.0,0.00033225,2]
[388064901,1758997857539,-153.0,0.00033225,2]
[388064902,1758997857548,-153.0,0.00033225,2]
[388064903,1758997857557,-153.0,0.00033225,2]
[388064904,1758997857566,-153.0,0.00033225,2]
[388064905,1758997857575,-153.0,0.00033225,2]
[388064906,1758997857584,-153.0,0.00033225,2]
[388064907,1758997857593,-153.0,0.00033225,2]
[388064908,1758997857604,-265.0,0.00033236,2]
[388064909,1758997857613,-116605.26225427,0.00033236,7]
[388064910,1758997857622,-153.0,0.00033263,2]
[388064911,1758997857631,-153.0,0.00033263,2]
[388064912,1758997857640,-153.0,0.00033263,2]
[388064913,1758997857650,-153.0,0.00033263,2]
[388064914,1758997857659,-522.0,0.00033271,7]
[388064915,1758997857668,-1000.0,0.00033287,15]
[388064916,1758997857678,-284.64812441,0.000333,120]
[388064917,1758997857687,-706.28334876,0.000333,120]
[388064918,1758997857696,-4929.40797599,0.000333,5]
[388064919,1758997857705,-1403.14159869,0.0003334,2]
[388064920,1758997857714,-520.0,0.00033413,7]
[388064921,1758997857723,-520.0,0.00033422,2]
[388064922,1758997857733,-520.0,0.00033437,2]
[388064923,1758997857743,-1000000.0,0.0003344,2]
[388064924,1758997857752,-151.0,0.0003344,7]
[388064925,1758997857762,-151.0,0.0003344,7]
[388064926,1758997857771,-151.0,0.0003344,7]
[388064927,1758997857780,-151.0,0.0003344,7]
[388064928,1758997857789,-151.0,0.0003344,7]
[388064929,1758997857799,-188.518753,0.0003344,7]
[388064930,1758997857809,-151.0,0.0003344,7]
[388064931,1758997857820,-151.0,0.0003344,7]
[388064932,1758997857829,-151.0,0.0003344,7]
[388064933,1758997857839,-151.0,0.0003344,7]
[388064934,1758997857848,-186.948398,0.0003344,7]
[388064935,1758997857858,-186.948398,0.0003344,7]
[388064936,1758997857867,-186.948398,0.0003344,7]
[388064937,1758997857876,-186.948398,0.0003344,7]
[388064938,1758997857886,-2978.0,0.00033496,3]
[388064939,1758997857895,-522.0,0.00033496,2]
[388064940,1758997857904,-1560.0,0.0003363,2]
[388064941,1758997857913,-522.0,0.00033657,2]
[388064942,1758997857922,-199.0,0.00033698,22]
[388064943,1758997857931,-1000.0,0.00033698,15]
[388064944,1758997857941,-520.0,0.00033767,2]
[388064945,1758997857950,-520.0,0.00033805,7]
[388064946,1758997857959,-168.0,0.00033836,2]
[388064947,1758997857969,-520.0,0.00033989,2]
[388064948,1758997857979,-1152.0,0.00034,2]
[388064949,1758997857990,-4588.0,0.00034047,2]
[388064950,1758997857999,-520.0,0.00034087,2]
[388064951,1758997858010,-1000.0,0.00034109,15]
[388064952,1758997858019,-224.072847,0.0003416,60]
[388064953,1758997858028,-1449.08802582,0.00034178,2]
[388064954,1758997858038,-520.0,0.00034252,2]
[388064955,1758997858048,-150.0,0.00034321,2]
[388064956,1758997858057,-300.0,0.00034321,2]
[388064957,1758997858066,-450.0,0.00034321,2]
[388064958,1758997858075,-600.0,0.00034321,2]
[388064959,1758997858084,-159.26782013,0.00034321,2]
[388064960,1758997858094,-316.12433756,0.00034383,23]
[388064961,1758997858103,-1000.0,0.0003452,15]
[388064962,1758997858111,-4609.0,0.00034622,3]
[388064963,1758997858121,-151.0,0.00034841,30]
[388064964,1758997858130,-3283.288036,0.00034855,2]
[388064965,1758997858139,-4146.49,0.000349,14]
[388064966,1758997858148,-970.5366833,0.00034931,15]
[388064967,1758997858158,-186.0,0.00034986,74]
[388064968,1758997858168,-168.0,0.00035079,2]
[388064969,1758997858178,-500.0,0.00035092,30]
[388064970,1758997858187,-5000.0,0.00035216,4]
[388064971,1758997858196,-165.649325,0.000353,2]
[388064972,1758997858206,-1000000.0,0.0003544,2]
[388064973,1758997858215,-151.0,0.0003544,7]
[388064974,1758997858224,-151.0,0.0003544,7]
[388064975,1758997858234,-151.0,0.0003544,7]
[388064976,1758997858244,-151.0,0.0003544,7]
[388064977,1758997858253,-151.0,0.0003544,7]
[388064978,1758997858263,-151.0,0.0003544,7]
[388064979,1758997858273,-151.0,0.0003544,7]
[388064980,1758997858283,-151.0,0.0003544,7]
[388064981,1758997858293,-151.0,0.0003544,7]
[388064982,1758997858303,-186.948398,0.0003544,7]
[388064983,1758997858312,-186.948398,0.0003544,7]
[388064984,1758997858321,-186.948398,0.0003544,7]
[388064985,1758997858330,-186.948398,0.0003544,7]
[388064986,1758997858339,-176.98420056,0.00035516,2]
[388064987,1758997858349,-47737.19357423,0.00035615,30]
[388064988,1758997858359,-156.0,0.00035615,14]
[388064989,1758997858368,-156.0,0.00035615,14]
[388064990,1758997858377,-155.53405102,0.00035615,14]
[388064991,1758997858387,-502.92519722,0.00035616,13]
[388064992,1758997858395,-480.0,0.00035616,9]
[388064993,1758997858408,-500.0,0.00035616,9]
[388064994,1758997858417,-500.0,0.00035616,9]
[388064995,1758997858427,-500.0,0.00035616,9]
[388064996,1758997858436,-500.0,0.00035616,9]
[388064997,1758997858445,-550.66502579,0.00035616,9]
[388064998,1758997858455,-480.0,0.00035616,9]
[388064999,1758997858464,-480.0,0.00035616,9]
[388065000,1758997858474,-821.95,0.00035616,9]
[388065001,1758997858483,-480.0,0.00035616,9]
[388065002,1758997858492,-480.0,0.00035616,9]
[388065003,1758997858501,-480.0,0.00035616,9]
[388065004,1758997858510,-4414.9502358,0.00035616,2]
[388065005,1758997858520,-480.0,0.00035616,9]
[388065006,1758997858529,-482.05923499,0.00035616,9]
[388065007,1758997858538,-374.98908187,0.00035616,9]
[388065008,1758997858547,-480.0,0.00035616,9]
[388065009,1758997858557,-514.48623572,0.00035616,9]
[388065010,1758997858566,-480.0,0.00035616,9]
[388065011,1758997858575,-480.0,0.00035616,9]
[388065012,1758997858584,-480.0,0.00035616,9]
[388065013,1758997858593,-482.04771949,0.00035616,9]
[388065014,1758997858604,-480.0,0.00035616,9]
[388065015,1758997858613,-483.91879368,0.00035616,9]
[388065016,1758997858623,-480.0,0.00035616,9]
[388065017,1758997858632,-480.0,0.00035616,9]
[388065018,1758997858642,-480.0,0.00035616,9]
[388065019,1758997858651,-481.78275944,0.00035616,9]
[388065020,1758997858660,-480.0,0.00035616,9]
[388065021,1758997858669,-480.0,0.00035616,9]
[388065022,1758997858678,-579.96,0.00035616,9]
[388065023,1758997858687,-480.0,0.00035616,9]
[388065024,1758997858696,-480.0,0.00035616,9]
[388065025,1758997858706,-480.0,0.00035616,9]
[388065026,1758997858715,-480.0,0.00035616,9]
[388065027,1758997858724,-480.0,0.00035616,9]
[388065028,1758997858734,-480.0,0.00035616,9]
[388065029,1758997858743,-480.0,0.00035616,9]
[388065030,1758997858752,-480.0,0.00035616,9]
[388065031,1758997858761,-480.0,0.00035616,9]
[388065032,1758997858770,-480.0,0.00035616,9]
[388065033,1758997858781,-480.0,0.00035616,9]
[388065034,1758997858790,-480.0,0.00035616,9]
[388065035,1758997858800,-480.71159428,0.00035616,9]
[388065036,1758997858811,-480.0,0.00035616,9]
[388065037,1758997858821,-480.0,0.00035616,9]
[388065038,1758997858831,-168.64862636,0.00035616,9]
[388065039,1758997858840,-745.71,0.00035616,9]
[388065040,1758997858851,-602.98614381,0.00035616,9]
[388065041,1758997858860,-480.0,0.00035616,9]
[388065042,1758997858870,-506.02418976,0.00035616,9]
[388065043,1758997858879,-480.0,0.00035616,9]
[388065044,1758997858888,-408.75971242,0.00035616,9]
[388065045,1758997858897,-1246.41,0.00035616,9]
[388065046,1758997858909,-480.0,0.00035616,9]
[388065047,1758997858918,-480.0,0.00035616,9]
[388065048,1758997858928,-480.0,0.00035616,9]
[388065049,1758997858937,-480.0,0.00035616,9]
[388065050,1758997858946,-480.0,0.00035616,9]
[388065051,1758997858955,-480.0,0.00035616,9]
[388065052,1758997858967,-480.0,0.00035616,9]
[388065053,1758997858976,-480.0,0.00035616,7]
[388065054,1758997858985,-480.0,0.00035616,9]
[388065055,1758997858994,-480.0,0.00035616,9]
[388065056,1758997859003,-480.0,0.00035616,9]
[388065057,1758997859013,-480.0,0.00035616,9]